[Event "Titled Tuesday Blitz June 27 Early 2023"]
[White "Koutlas, Nikolaos"]
[Black "Yuan, Qingyu"]
[WhiteFideId "25827138"]
[BlackFideId "8609772"]
[WhiteElo "2496"]
[BlackElo "2717"]
[Result "0-1"]
[Round "4"]
[TimeControl "180+2"]
[Date "2023.06.27"]
[WhiteClock "0:00:09"]
[BlackClock "0:00:12"]
[Board "79"]

1. Nf3 {[%clk 0:02:42]}  d5 {[%clk 0:02:58]} 2. g3 {[%clk 0:02:39]}  c5 {[%clk 0:02:58]} 3. Bg2 {[%clk 0:02:40]}  Nc6 {[%clk 0:02:59]} 4. c4 {[%clk 0:02:38]}  dxc4 {[%clk 0:02:47]} 5. Qa4 {[%clk 0:02:36]}  Bd7 {[%clk 0:02:46]} 6. Qxc4 {[%clk 0:02:36]}  e6 {[%clk 0:02:46]} 7. O-O {[%clk 0:02:34]}  Nf6 {[%clk 0:02:46]} 8. Nc3 {[%clk 0:02:33]}  Be7 {[%clk 0:02:43]} 9. d3 {[%clk 0:02:32]}  O-O {[%clk 0:02:43]} 10. Be3 {[%clk 0:02:23]}  b6 {[%clk 0:02:33]} 11. a3 {[%clk 0:02:20]}  Rc8 {[%clk 0:02:32]} 12. Rac1 {[%clk 0:02:19]}  Na5 {[%clk 0:02:19]} 13. Qa2 {[%clk 0:02:17]}  Bc6 {[%clk 0:02:16]} 14. Rfd1 {[%clk 0:02:12]}  Qc7 {[%clk 0:02:13]} 15. d4 {[%clk 0:02:11]}  cxd4 {[%clk 0:02:05]} 16. Nxd4 {[%clk 0:02:10]}  Bxg2 {[%clk 0:02:04]} 17. Kxg2 {[%clk 0:02:05]}  Nc4 {[%clk 0:01:57]} 18. Bf4 {[%clk 0:02:01]}  e5 {[%clk 0:01:38]} 19. Ncb5 {[%clk 0:02:00]}  Qb7+ {[%clk 0:01:37]} 20. Kg1 {[%clk 0:01:55]}  a6 {[%clk 0:00:58]} 21. Rxc4 {[%clk 0:01:37]}  exf4 {[%clk 0:00:45]} 22. Nc3 {[%clk 0:01:18]}  fxg3 {[%clk 0:00:33]} 23. hxg3 {[%clk 0:01:17]}  g6 {[%clk 0:00:32]} 24. Nf3 {[%clk 0:01:03]}  Rfd8 {[%clk 0:00:25]} 25. Rxc8 {[%clk 0:01:01]}  Qxc8 {[%clk 0:00:25]} 26. Rxd8+ {[%clk 0:00:56]}  Bxd8 {[%clk 0:00:22]} 27. Nd5 {[%clk 0:00:46]}  Qe6 {[%clk 0:00:19]} 28. Nxf6+ {[%clk 0:00:41]}  Bxf6 {[%clk 0:00:20]} 29. Qxe6 {[%clk 0:00:37]}  fxe6 {[%clk 0:00:21]} 30. b3 {[%clk 0:00:37]}  h5 {[%clk 0:00:19]} 31. e4 {[%clk 0:00:34]}  Bb2 {[%clk 0:00:14]} 32. a4 {[%clk 0:00:33]}  Kf7 {[%clk 0:00:15]} 33. Kf1 {[%clk 0:00:31]}  Ke7 {[%clk 0:00:15]} 34. Ke2 {[%clk 0:00:31]}  Kd6 {[%clk 0:00:16]} 35. Kd3 {[%clk 0:00:30]}  Bf6 {[%clk 0:00:13]} 36. Kc4 {[%clk 0:00:19]}  g5 {[%clk 0:00:12]} 37. e5+ {[%clk 0:00:19]}  Bxe5 {[%clk 0:00:11]} 38. Nxg5 {[%clk 0:00:20]}  Bg7 {[%clk 0:00:07]} 39. Nf3 {[%clk 0:00:18]}  Bf6 {[%clk 0:00:06]} 40. b4 {[%clk 0:00:18]}  e5 {[%clk 0:00:04]} 41. Nd2 {[%clk 0:00:17]}  Ke6 {[%clk 0:00:04]} 42. Ne4 {[%clk 0:00:17]}  Be7 {[%clk 0:00:03]} 43. a5 {[%clk 0:00:13]}  b5+ {[%clk 0:00:04]} 44. Kc3 {[%clk 0:00:11]}  Kd5 {[%clk 0:00:04]} 45. f3 {[%clk 0:00:11]}  Kc6 {[%clk 0:00:04]} 46. Kb3 {[%clk 0:00:10]}  Kd5 {[%clk 0:00:04]} 47. Kc3 {[%clk 0:00:10]}  Kc6 {[%clk 0:00:05]} 48. Nd2 {[%clk 0:00:08]}  h4 {[%clk 0:00:05]} 49. gxh4 {[%clk 0:00:08]}  Bxh4 {[%clk 0:00:06]} 50. Kd3 {[%clk 0:00:06]}  Be1 {[%clk 0:00:05]} 51. Ke2 {[%clk 0:00:04]}  Bxd2 {[%clk 0:00:06]} 52. Kxd2 {[%clk 0:00:05]}  Kd6 {[%clk 0:00:06]} 53. Ke3 {[%clk 0:00:05]}  Kd5 {[%clk 0:00:04]} 54. Kd3 {[%clk 0:00:05]}  Kd6 {[%clk 0:00:04]} 55. Ke4 {[%clk 0:00:06]}  Ke6 {[%clk 0:00:05]} 56. Ke3 {[%clk 0:00:05]}  Kd5 {[%clk 0:00:05]} 57. Kd3 {[%clk 0:00:06]}  Kd6 {[%clk 0:00:06]} 58. Ke4 {[%clk 0:00:06]}  Ke6 {[%clk 0:00:07]} 59. Ke3 {[%clk 0:00:06]}  Kf5 {[%clk 0:00:07]} 60. Ke2 {[%clk 0:00:04]}  Kf4 {[%clk 0:00:07]} 61. Kf2 {[%clk 0:00:04]}  e4 {[%clk 0:00:08]} 62. fxe4 {[%clk 0:00:05]}  Kxe4 {[%clk 0:00:08]} 63. Ke2 {[%clk 0:00:05]}  Kd4 {[%clk 0:00:09]} 64. Kf3 {[%clk 0:00:06]}  Kc4 {[%clk 0:00:10]} 65. Ke4 {[%clk 0:00:07]}  Kxb4 {[%clk 0:00:11]} 66. Kd5 {[%clk 0:00:08]}  Kxa5 {[%clk 0:00:11]} 67. Kc6 {[%clk 0:00:09]}  Kb4 {[%clk 0:00:12]} 0-1


[Site "https://www.chess.com"]

[Event "Titled Tuesday Blitz June 27 Early 2023"]
[White "Ernst, Sipke"]
[Black "Matinian, Nikita"]
[WhiteFideId "1004689"]
[BlackFideId "24129100"]
[WhiteElo "2659"]
[BlackElo "2713"]
[Result "0-1"]
[Round "4"]
[TimeControl "180+2"]
[Date "2023.06.27"]
[WhiteClock "0:00:00"]
[BlackClock "0:00:04"]
[Board "82"]

1. d4 {[%clk 0:03:00]}  d6 {[%clk 0:03:00]} 2. g3 {[%clk 0:02:58]}  g6 {[%clk 0:02:59]} 3. Bg2 {[%clk 0:02:58]}  Bg7 {[%clk 0:03:00]} 4. Nf3 {[%clk 0:02:58]}  Nf6 {[%clk 0:03:00]} 5. O-O {[%clk 0:02:59]}  O-O {[%clk 0:03:00]} 6. Re1 {[%clk 0:02:59]}  c6 {[%clk 0:02:53]} 7. e4 {[%clk 0:02:57]}  Bg4 {[%clk 0:02:52]} 8. Nbd2 {[%clk 0:02:56]}  Nbd7 {[%clk 0:02:48]} 9. h3 {[%clk 0:02:55]}  Bxf3 {[%clk 0:02:49]} 10. Nxf3 {[%clk 0:02:55]}  e5 {[%clk 0:02:49]} 11. dxe5 {[%clk 0:02:51]}  dxe5 {[%clk 0:02:49]} 12. b4 {[%clk 0:02:40]}  Qe7 {[%clk 0:02:45]} 13. Rb1 {[%clk 0:02:32]}  Rfd8 {[%clk 0:02:45]} 14. Qe2 {[%clk 0:02:31]}  b5 {[%clk 0:02:43]} 15. c4 {[%clk 0:02:30]}  a6 {[%clk 0:02:42]} 16. c5 {[%clk 0:02:28]}  Nf8 {[%clk 0:02:41]} 17. Bb2 {[%clk 0:02:28]}  N6d7 {[%clk 0:02:41]} 18. h4 {[%clk 0:02:23]}  a5 {[%clk 0:02:42]} 19. a3 {[%clk 0:02:22]}  axb4 {[%clk 0:02:42]} 20. axb4 {[%clk 0:02:23]}  Ra2 {[%clk 0:02:42]} 21. Ra1 {[%clk 0:02:23]}  Rda8 {[%clk 0:02:40]} 22. Rxa2 {[%clk 0:02:23]}  Rxa2 {[%clk 0:02:41]} 23. Ra1 {[%clk 0:02:23]}  Rxa1+ {[%clk 0:02:40]} 24. Bxa1 {[%clk 0:02:24]}  Ne6 {[%clk 0:02:40]} 25. Bh3 {[%clk 0:02:24]}  Nd4 {[%clk 0:02:36]} 26. Bxd4 {[%clk 0:02:23]}  exd4 {[%clk 0:02:37]} 27. Bxd7 {[%clk 0:02:23]}  Qxd7 {[%clk 0:02:38]} 28. Ne1 {[%clk 0:02:03]}  Qe6 {[%clk 0:02:29]} 29. Nd3 {[%clk 0:02:03]}  f5 {[%clk 0:02:25]} 30. e5 {[%clk 0:02:01]}  Bh6 {[%clk 0:02:19]} 31. f4 {[%clk 0:02:01]}  Bg7 {[%clk 0:02:13]} 32. Qf3 {[%clk 0:02:00]}  h6 {[%clk 0:02:12]} 33. Kg2 {[%clk 0:01:59]}  Kh7 {[%clk 0:02:11]} 34. Kh2 {[%clk 0:01:42]}  Bf8 {[%clk 0:02:12]} 35. Kg2 {[%clk 0:01:38]}  Be7 {[%clk 0:02:12]} 36. Nf2 {[%clk 0:01:34]}  Kg7 {[%clk 0:02:08]} 37. Kh3 {[%clk 0:01:25]}  Qa2 {[%clk 0:02:04]} 38. Kg2 {[%clk 0:01:17]}  Qe6 {[%clk 0:02:00]} 39. Nd3 {[%clk 0:01:16]}  Kf7 {[%clk 0:01:56]} 40. Kh3 {[%clk 0:01:14]}  h5 {[%clk 0:01:52]} 41. Kg2 {[%clk 0:01:13]}  Bd8 {[%clk 0:01:46]} 42. Nf2 {[%clk 0:01:12]}  Bc7 {[%clk 0:01:46]} 43. Nh3 {[%clk 0:01:05]}  Ke7 {[%clk 0:01:45]} 44. Nf2 {[%clk 0:01:04]}  Kd7 {[%clk 0:01:45]} 45. Nd3 {[%clk 0:01:04]}  Kc8 {[%clk 0:01:43]} 46. Qf2 {[%clk 0:00:59]}  Qc4 {[%clk 0:01:41]} 47. Qf3 {[%clk 0:00:59]}  Qb3 {[%clk 0:01:33]} 48. Nf2 {[%clk 0:00:51]}  Qe6 {[%clk 0:01:13]} 49. Qe2 {[%clk 0:00:50]}  Kd7 {[%clk 0:01:10]} 50. Qf3 {[%clk 0:00:50]}  Qc4 {[%clk 0:01:08]} 51. Nd3 {[%clk 0:00:47]}  Qc2+ {[%clk 0:01:05]} 52. Kh3 {[%clk 0:00:47]}  Qb3 {[%clk 0:00:58]} 53. Kg2 {[%clk 0:00:42]}  Qa2+ {[%clk 0:00:57]} 54. Kh3 {[%clk 0:00:42]}  Bb8 {[%clk 0:00:39]} 55. Qd1 {[%clk 0:00:36]}  Qd5 {[%clk 0:00:32]} 56. Nf2 {[%clk 0:00:21]}  Ke6 {[%clk 0:00:28]} 57. Kh2 {[%clk 0:00:20]}  Bc7 {[%clk 0:00:28]} 58. Nd3 {[%clk 0:00:19]}  Bd8 {[%clk 0:00:22]} 59. Nf2 {[%clk 0:00:19]}  Be7 {[%clk 0:00:15]} 60. Nd3 {[%clk 0:00:18]}  Qa2+ {[%clk 0:00:10]} 61. Kh3 {[%clk 0:00:17]}  Qc4 {[%clk 0:00:07]} 62. Qf3 {[%clk 0:00:16]}  Qd5 {[%clk 0:00:07]} 63. Kg2 {[%clk 0:00:16]}  Qe4 {[%clk 0:00:06]} 64. Nf2 {[%clk 0:00:15]}  Qxf3+ {[%clk 0:00:04]} 65. Kxf3 {[%clk 0:00:16]}  Kd5 {[%clk 0:00:05]} 66. Ke2 {[%clk 0:00:13]}  Kc4 {[%clk 0:00:05]} 67. Nd3 {[%clk 0:00:14]}  Kc3 {[%clk 0:00:06]} 68. e6 {[%clk 0:00:13]}  Kc2 {[%clk 0:00:03]} 69. Ne5 {[%clk 0:00:12]}  Bf6 {[%clk 0:00:04]} 70. Nd3 {[%clk 0:00:09]}  Kc3 {[%clk 0:00:04]} 71. Ne5 {[%clk 0:00:07]}  Kc2 {[%clk 0:00:03]} 72. Nd3 {[%clk 0:00:06]}  Kc3 {[%clk 0:00:04]} 73. Ne5 {[%clk 0:00:06]}  Bxe5 {[%clk 0:00:04]} 74. e7 {[%clk 0:00:06]}  Kc2 {[%clk 0:00:03]} 75. e8=Q {[%clk 0:00:06]}  d3+ {[%clk 0:00:04]} 76. Kf2 {[%clk 0:00:05]}  d2 {[%clk 0:00:04]} 77. Qxe5 {[%clk 0:00:00]}  d1=Q {[%clk 0:00:04]} 0-1


[Site "https://www.chess.com"]

[Event "Titled Tuesday Blitz June 27 Early 2023"]
[White "Mazurkiewicz, Michal"]
[Black "Hambleton, Aman"]
[WhiteFideId "1124943"]
[BlackFideId "2606577"]
[WhiteElo "2468"]
[BlackElo "2704"]
[Result "0-1"]
[Round "4"]
[TimeControl "180+2"]
[Date "2023.06.27"]
[WhiteClock "0:00:04"]
[BlackClock "0:00:04"]
[Board "84"]

1. e4 {[%clk 0:03:00]}  b6 {[%clk 0:02:58]} 2. g3 {[%clk 0:02:59]}  Bb7 {[%clk 0:02:57]} 3. Bg2 {[%clk 0:03:00]}  e6 {[%clk 0:02:48]} 4. d3 {[%clk 0:03:00]}  Ne7 {[%clk 0:02:44]} 5. Nd2 {[%clk 0:03:01]}  g6 {[%clk 0:02:44]} 6. Ngf3 {[%clk 0:03:01]}  Bg7 {[%clk 0:02:44]} 7. O-O {[%clk 0:03:02]}  O-O {[%clk 0:02:43]} 8. Re1 {[%clk 0:03:02]}  d6 {[%clk 0:02:42]} 9. h4 {[%clk 0:02:57]}  h6 {[%clk 0:02:41]} 10. Nf1 {[%clk 0:02:53]}  e5 {[%clk 0:02:13]} 11. Ne3 {[%clk 0:02:46]}  Nd7 {[%clk 0:01:23]} 12. h5 {[%clk 0:02:35]}  g5 {[%clk 0:01:00]} 13. Nh2 {[%clk 0:02:34]}  f5 {[%clk 0:00:50]} 14. exf5 {[%clk 0:02:18]}  Bxg2 {[%clk 0:00:51]} 15. Kxg2 {[%clk 0:02:09]}  Nxf5 {[%clk 0:00:51]} 16. Nxf5 {[%clk 0:01:58]}  Rxf5 {[%clk 0:00:52]} 17. Ng4 {[%clk 0:01:58]}  Qe8 {[%clk 0:00:35]} 18. Qe2 {[%clk 0:01:55]}  Qxh5 {[%clk 0:00:26]} 19. Qe4 {[%clk 0:00:38]}  Raf8 {[%clk 0:00:26]} 20. Rh1 {[%clk 0:00:39]}  Qg6 {[%clk 0:00:13]} 21. Qc4+ {[%clk 0:00:38]}  R8f7 {[%clk 0:00:05]} 22. Qxc7 {[%clk 0:00:37]}  h5 {[%clk 0:00:05]} 23. Qd8+ {[%clk 0:00:14]}  Bf8 {[%clk 0:00:05]} 24. Ne3 {[%clk 0:00:04]}  Rxf2+ {[%clk 0:00:05]} 25. Kg1 {[%clk 0:00:04]}  Re2 {[%clk 0:00:06]} 26. b3 {[%clk 0:00:03]}  Nf6 {[%clk 0:00:03]} 27. Qc8 {[%clk 0:00:03]}  e4 {[%clk 0:00:03]} 28. dxe4 {[%clk 0:00:03]}  Qxe4 {[%clk 0:00:03]} 29. Qe6 {[%clk 0:00:03]}  Qxe6 {[%clk 0:00:03]} 30. Rxh5 {[%clk 0:00:03]}  Nxh5 {[%clk 0:00:02]} 31. Nf5 {[%clk 0:00:03]}  Qxf5 {[%clk 0:00:03]} 32. g4 {[%clk 0:00:03]}  Qf2+ {[%clk 0:00:03]} 33. Kh1 {[%clk 0:00:04]}  Qg2# {[%clk 0:00:04]} 0-1


[Site "https://www.chess.com"]

[Event "Titled Tuesday Blitz June 27 Early 2023"]
[White "Abdilkhair, Abilmansur"]
[Black "Fromm, Marius"]
[WhiteFideId "13716417"]
[BlackFideId "12993190"]
[WhiteElo "2454"]
[BlackElo "2703"]
[Result "0-1"]
[Round "4"]
[TimeControl "180+2"]
[Date "2023.06.27"]
[WhiteClock "0:00:03"]
[BlackClock "0:00:10"]
[Board "86"]

1. e4 {[%clk 0:03:00]}  c5 {[%clk 0:02:59]} 2. c3 {[%clk 0:02:59]}  d5 {[%clk 0:02:59]} 3. exd5 {[%clk 0:03:00]}  Qxd5 {[%clk 0:03:00]} 4. d4 {[%clk 0:03:00]}  Nf6 {[%clk 0:03:01]} 5. Nf3 {[%clk 0:03:00]}  e6 {[%clk 0:03:01]} 6. Be3 {[%clk 0:02:53]}  cxd4 {[%clk 0:02:59]} 7. cxd4 {[%clk 0:02:51]}  Bb4+ {[%clk 0:02:56]} 8. Nc3 {[%clk 0:02:49]}  Bd7 {[%clk 0:02:56]} 9. Bd3 {[%clk 0:02:41]}  Bb5 {[%clk 0:02:54]} 10. O-O {[%clk 0:02:38]}  Bxc3 {[%clk 0:02:53]} 11. bxc3 {[%clk 0:02:37]}  Bxd3 {[%clk 0:02:53]} 12. Qxd3 {[%clk 0:02:36]}  Nbd7 {[%clk 0:02:48]} 13. c4 {[%clk 0:02:34]}  Qa5 {[%clk 0:02:47]} 14. Rab1 {[%clk 0:02:32]}  O-O {[%clk 0:02:41]} 15. Rxb7 {[%clk 0:02:27]}  Qxa2 {[%clk 0:02:40]} 16. Ne5 {[%clk 0:02:15]}  Nxe5 {[%clk 0:02:30]} 17. dxe5 {[%clk 0:02:16]}  Ng4 {[%clk 0:02:31]} 18. Bc5 {[%clk 0:02:01]}  Rfc8 {[%clk 0:02:17]} 19. Qe4 {[%clk 0:01:49]}  Rxc5 {[%clk 0:02:08]} 20. Qxg4 {[%clk 0:01:43]}  Qxc4 {[%clk 0:02:03]} 21. Qf3 {[%clk 0:01:39]}  Rf8 {[%clk 0:01:57]} 22. Rxa7 {[%clk 0:01:38]}  Rxe5 {[%clk 0:01:55]} 23. g3 {[%clk 0:01:36]}  Rf5 {[%clk 0:01:47]} 24. Qe3 {[%clk 0:01:34]}  Qd5 {[%clk 0:01:45]} 25. Rc1 {[%clk 0:01:29]}  h5 {[%clk 0:01:42]} 26. h4 {[%clk 0:01:28]}  g6 {[%clk 0:01:38]} 27. Rac7 {[%clk 0:01:28]}  Rf3 {[%clk 0:01:31]} 28. Qc5 {[%clk 0:01:17]}  Qd2 {[%clk 0:01:21]} 29. Rc8 {[%clk 0:01:14]}  Rxc8 {[%clk 0:01:18]} 30. Qxc8+ {[%clk 0:01:15]}  Kg7 {[%clk 0:01:19]} 31. Rf1 {[%clk 0:01:13]}  Qd4 {[%clk 0:01:17]} 32. Qc7 {[%clk 0:01:06]}  e5 {[%clk 0:01:14]} 33. Kg2 {[%clk 0:01:03]}  Qd5 {[%clk 0:01:08]} 34. Kg1 {[%clk 0:00:59]}  e4 {[%clk 0:01:08]} 35. Re1 {[%clk 0:00:33]}  Qd2 {[%clk 0:00:36]} 36. Qe5+ {[%clk 0:00:31]}  Kh7 {[%clk 0:00:36]} 37. Rf1 {[%clk 0:00:30]}  Qe2 {[%clk 0:00:29]} 38. Qd4 {[%clk 0:00:09]}  e3 {[%clk 0:00:23]} 39. Qd1 {[%clk 0:00:02]}  exf2+ {[%clk 0:00:21]} 40. Kg2 {[%clk 0:00:02]}  Qxd1 {[%clk 0:00:09]} 41. Rxd1 {[%clk 0:00:03]}  Rf5 {[%clk 0:00:08]} 42. Rf1 {[%clk 0:00:04]}  Kg7 {[%clk 0:00:08]} 43. Rxf2 {[%clk 0:00:04]}  Rxf2+ {[%clk 0:00:09]} 44. Kxf2 {[%clk 0:00:05]}  Kf6 {[%clk 0:00:09]} 45. Ke3 {[%clk 0:00:05]}  Ke5 {[%clk 0:00:09]} 46. Kf3 {[%clk 0:00:03]}  Kf5 {[%clk 0:00:10]} 0-1


[Site "https://www.chess.com"]

[Event "Titled Tuesday Blitz June 27 Early 2023"]
[White "Garrido Outon, Alex"]
[Black "Volkov, Maksim"]
[WhiteFideId "24516279"]
[BlackFideId "54123070"]
[WhiteElo "2453"]
[BlackElo "2702"]
[Result "1-0"]
[Round "4"]
[TimeControl "180+2"]
[Date "2023.06.27"]
[WhiteClock "0:00:34"]
[BlackClock "0:00:00"]
[Board "87"]

1. e4 {[%clk 0:02:59]}  c5 {[%clk 0:02:59]} 2. Ne2 {[%clk 0:02:59]}  d6 {[%clk 0:02:59]} 3. g3 {[%clk 0:02:59]}  Nf6 {[%clk 0:02:54]} 4. Bg2 {[%clk 0:02:59]}  Nc6 {[%clk 0:02:54]} 5. O-O {[%clk 0:02:58]}  g6 {[%clk 0:02:53]} 6. c3 {[%clk 0:02:58]}  Bg7 {[%clk 0:02:52]} 7. d4 {[%clk 0:02:58]}  cxd4 {[%clk 0:02:53]} 8. cxd4 {[%clk 0:02:58]}  O-O {[%clk 0:02:52]} 9. Nbc3 {[%clk 0:02:57]}  e5 {[%clk 0:02:51]} 10. d5 {[%clk 0:02:54]}  Nd4 {[%clk 0:02:49]} 11. Nxd4 {[%clk 0:02:49]}  exd4 {[%clk 0:02:50]} 12. Qxd4 {[%clk 0:02:49]}  Re8 {[%clk 0:02:48]} 13. Qd3 {[%clk 0:02:47]}  Ng4 {[%clk 0:02:47]} 14. Bf4 {[%clk 0:02:37]}  a6 {[%clk 0:02:44]} 15. Rac1 {[%clk 0:02:34]}  b5 {[%clk 0:02:41]} 16. b3 {[%clk 0:02:32]}  Ne5 {[%clk 0:02:37]} 17. Qd2 {[%clk 0:02:21]}  Bd7 {[%clk 0:02:32]} 18. Ne2 {[%clk 0:02:20]}  Qb6 {[%clk 0:02:13]} 19. Be3 {[%clk 0:02:18]}  Qb7 {[%clk 0:02:10]} 20. Nd4 {[%clk 0:02:16]}  Ng4 {[%clk 0:02:07]} 21. Bf4 {[%clk 0:02:16]}  Qb6 {[%clk 0:02:03]} 22. Rfd1 {[%clk 0:02:01]}  Rac8 {[%clk 0:01:59]} 23. Nc6 {[%clk 0:01:58]}  Ne5 {[%clk 0:01:33]} 24. Be3 {[%clk 0:01:53]}  Qb7 {[%clk 0:01:29]} 25. Na5 {[%clk 0:01:43]}  Qb8 {[%clk 0:01:22]} 26. f4 {[%clk 0:01:43]}  Ng4 {[%clk 0:01:19]} 27. Bd4 {[%clk 0:01:43]}  Nf6 {[%clk 0:01:01]} 28. Qd3 {[%clk 0:01:30]}  Bg4 {[%clk 0:00:40]} 29. Re1 {[%clk 0:01:19]}  Rc7 {[%clk 0:00:34]} 30. Rxc7 {[%clk 0:01:06]}  Qxc7 {[%clk 0:00:34]} 31. Nc6 {[%clk 0:01:05]}  Nxd5 {[%clk 0:00:28]} 32. Bxg7 {[%clk 0:01:01]}  Qxc6 {[%clk 0:00:28]} 33. Bb2 {[%clk 0:00:45]}  Nb4 {[%clk 0:00:21]} 34. Qd2 {[%clk 0:00:39]}  Qc5+ {[%clk 0:00:17]} 35. Bd4 {[%clk 0:00:35]}  Qc2 {[%clk 0:00:08]} 36. Qxb4 {[%clk 0:00:36]}  Qxa2 {[%clk 0:00:00]} 37. Bc3 {[%clk 0:00:34]} 1-0


[Site "https://www.chess.com"]

[Event "Titled Tuesday Blitz June 27 Early 2023"]
[White "Mirzoev, Azer"]
[Black "Itkis, Boris"]
[WhiteFideId "13400304"]
[BlackFideId "1209167"]
[WhiteElo "2695"]
[BlackElo "2438"]
[Result "1-0"]
[Round "4"]
[TimeControl "180+2"]
[Date "2023.06.27"]
[WhiteClock "0:00:20"]
[BlackClock "0:00:12"]
[Board "91"]

1. c4 {[%clk 0:02:59]}  c5 {[%clk 0:02:57]} 2. Nc3 {[%clk 0:02:59]}  Nc6 {[%clk 0:02:58]} 3. g3 {[%clk 0:02:59]}  g6 {[%clk 0:02:55]} 4. Bg2 {[%clk 0:03:00]}  Bg7 {[%clk 0:02:56]} 5. h4 {[%clk 0:03:00]}  h5 {[%clk 0:02:53]} 6. a3 {[%clk 0:02:59]}  d6 {[%clk 0:02:53]} 7. Rb1 {[%clk 0:02:58]}  Nh6 {[%clk 0:02:47]} 8. d3 {[%clk 0:02:50]}  Nf5 {[%clk 0:02:47]} 9. Nf3 {[%clk 0:02:48]}  Qd7 {[%clk 0:02:46]} 10. Nd5 {[%clk 0:02:44]}  b6 {[%clk 0:02:38]} 11. b4 {[%clk 0:02:44]}  Bb7 {[%clk 0:02:36]} 12. bxc5 {[%clk 0:02:42]}  dxc5 {[%clk 0:02:35]} 13. Bf4 {[%clk 0:02:42]}  O-O {[%clk 0:02:27]} 14. O-O {[%clk 0:02:40]}  e6 {[%clk 0:02:26]} 15. Ne3 {[%clk 0:02:31]}  Nfd4 {[%clk 0:01:51]} 16. Nc2 {[%clk 0:02:23]}  Rad8 {[%clk 0:01:40]} 17. Bg5 {[%clk 0:02:19]}  Rc8 {[%clk 0:01:34]} 18. Nfxd4 {[%clk 0:02:14]}  Nxd4 {[%clk 0:01:33]} 19. Bxb7 {[%clk 0:02:10]}  Qxb7 {[%clk 0:01:34]} 20. Nxd4 {[%clk 0:02:09]}  cxd4 {[%clk 0:01:32]} 21. a4 {[%clk 0:02:08]}  Rc5 {[%clk 0:01:31]} 22. Rb5 {[%clk 0:02:07]}  a6 {[%clk 0:01:09]} 23. Rb2 {[%clk 0:02:04]}  b5 {[%clk 0:01:06]} 24. axb5 {[%clk 0:02:01]}  axb5 {[%clk 0:01:07]} 25. Qb3 {[%clk 0:02:01]}  Rfc8 {[%clk 0:00:51]} 26. Rfb1 {[%clk 0:01:56]}  Kh7 {[%clk 0:00:49]} 27. cxb5 {[%clk 0:01:55]}  Rc3 {[%clk 0:00:46]} 28. Qa4 {[%clk 0:01:47]}  Ra8 {[%clk 0:00:38]} 29. Qd1 {[%clk 0:01:46]}  f6 {[%clk 0:00:37]} 30. Bd2 {[%clk 0:01:45]}  Rc5 {[%clk 0:00:36]} 31. Qb3 {[%clk 0:01:41]}  Re5 {[%clk 0:00:35]} 32. Bf4 {[%clk 0:01:39]}  Rd5 {[%clk 0:00:34]} 33. b6 {[%clk 0:01:38]}  g5 {[%clk 0:00:33]} 34. hxg5 {[%clk 0:01:35]}  fxg5 {[%clk 0:00:34]} 35. Bc7 {[%clk 0:01:34]}  h4 {[%clk 0:00:34]} 36. Qd1 {[%clk 0:01:25]}  h3 {[%clk 0:00:33]} 37. f3 {[%clk 0:01:18]}  g4 {[%clk 0:00:32]} 38. Qf1 {[%clk 0:01:14]}  Bh6 {[%clk 0:00:32]} 39. Kh2 {[%clk 0:01:13]}  Rf8 {[%clk 0:00:31]} 40. Rc2 {[%clk 0:00:53]}  Rdf5 {[%clk 0:00:29]} 41. f4 {[%clk 0:00:48]}  e5 {[%clk 0:00:29]} 42. Bxe5 {[%clk 0:00:47]}  Rxe5 {[%clk 0:00:29]} 43. Rc7+ {[%clk 0:00:47]}  Re7 {[%clk 0:00:26]} 44. Rxb7 {[%clk 0:00:46]}  Rxb7 {[%clk 0:00:27]} 45. Qh1 {[%clk 0:00:44]}  Re7 {[%clk 0:00:27]} 46. Rb2 {[%clk 0:00:43]}  Rfe8 {[%clk 0:00:26]} 47. Qf1 {[%clk 0:00:38]}  Rb8 {[%clk 0:00:20]} 48. Qd1 {[%clk 0:00:27]}  Bf8 {[%clk 0:00:19]} 49. Qa4 {[%clk 0:00:20]}  Rbe8 {[%clk 0:00:19]} 50. Qa2 {[%clk 0:00:20]}  Rb7 {[%clk 0:00:16]} 51. Qd5 {[%clk 0:00:19]}  Rbe7 {[%clk 0:00:15]} 52. Qf5+ {[%clk 0:00:19]}  Kh6 {[%clk 0:00:12]} 53. Qxg4 {[%clk 0:00:20]} 1-0


[Site "https://www.chess.com"]

[Event "Titled Tuesday Blitz June 27 Early 2023"]
[White "Jaracz, Pawel"]
[Black "Hoffmann, Asa"]
[WhiteFideId "1102222"]
[BlackFideId "2001470"]
[WhiteElo "2688"]
[BlackElo "2408"]
[Result "1-0"]
[Round "4"]
[TimeControl "180+2"]
[Date "2023.06.27"]
[WhiteClock "0:00:51"]
[BlackClock "0:00:00"]
[Board "93"]

1. e4 {[%clk 0:02:55]}  d6 {[%clk 0:02:58]} 2. Nc3 {[%clk 0:02:53]}  Nf6 {[%clk 0:02:57]} 3. f4 {[%clk 0:02:53]}  c6 {[%clk 0:02:57]} 4. Nf3 {[%clk 0:02:54]}  g6 {[%clk 0:02:54]} 5. d4 {[%clk 0:02:49]}  Bg7 {[%clk 0:02:46]} 6. Be3 {[%clk 0:02:49]}  Qb6 {[%clk 0:02:44]} 7. a3 {[%clk 0:02:46]}  Bg4 {[%clk 0:02:34]} 8. Bd3 {[%clk 0:02:38]}  Nbd7 {[%clk 0:02:33]} 9. O-O {[%clk 0:02:35]}  e5 {[%clk 0:02:32]} 10. Ne2 {[%clk 0:02:26]}  Bxf3 {[%clk 0:02:20]} 11. gxf3 {[%clk 0:02:19]}  Nh5 {[%clk 0:02:00]} 12. c3 {[%clk 0:02:10]}  O-O {[%clk 0:01:53]} 13. Qd2 {[%clk 0:02:09]}  exf4 {[%clk 0:01:40]} 14. Nxf4 {[%clk 0:02:07]}  Nxf4 {[%clk 0:01:39]} 15. Bxf4 {[%clk 0:02:08]}  c5 {[%clk 0:01:32]} 16. d5 {[%clk 0:01:58]}  c4+ {[%clk 0:01:04]} 17. Be3 {[%clk 0:01:58]}  Bh6 {[%clk 0:01:01]} 18. f4 {[%clk 0:01:48]}  Qc7 {[%clk 0:00:49]} 19. Bc2 {[%clk 0:01:46]}  Rae8 {[%clk 0:00:42]} 20. Rae1 {[%clk 0:01:45]}  Nc5 {[%clk 0:00:42]} 21. Bd4 {[%clk 0:01:43]}  f6 {[%clk 0:00:37]} 22. Qf2 {[%clk 0:01:41]}  b6 {[%clk 0:00:34]} 23. Qg3 {[%clk 0:01:36]}  Bg7 {[%clk 0:00:28]} 24. h4 {[%clk 0:01:34]}  Qf7 {[%clk 0:00:08]} 25. h5 {[%clk 0:01:28]}  f5 {[%clk 0:00:06]} 26. hxg6 {[%clk 0:01:23]}  Qxg6 {[%clk 0:00:05]} 27. Qxg6 {[%clk 0:01:22]}  hxg6 {[%clk 0:00:05]} 28. e5 {[%clk 0:01:23]}  Nd3 {[%clk 0:00:02]} 29. Bxd3 {[%clk 0:01:22]}  cxd3 {[%clk 0:00:02]} 30. Re3 {[%clk 0:01:18]}  d2 {[%clk 0:00:02]} 31. Rd1 {[%clk 0:01:19]}  g5 {[%clk 0:00:02]} 32. e6 {[%clk 0:01:00]}  gxf4 {[%clk 0:00:01]} 33. Rd3 {[%clk 0:00:58]}  Be5 {[%clk 0:00:01]} 34. R1xd2 {[%clk 0:00:54]}  Rf6 {[%clk 0:00:01]} 35. Rg2+ {[%clk 0:00:54]}  Kf8 {[%clk 0:00:00]} 36. Rh3 {[%clk 0:00:51]} 1-0


[Site "https://www.chess.com"]